fUSD/lending_fUSD_20250211
["ID","MTS","AMOUNT","RATE_DAILY","PERIOD"]
[352723277,1739278232172,-278.26776511,0.0001,2]
[352723278,1739278232400,-221.73223489,0.0001,2]
[352723279,1739278232411,-98.55817775,0.00010069,2]
[352723280,1739278232460,-3320.18182225,0.00010069,2]
[352723281,1739278232470,-211.9,0.00010137,2]
[352723282,1739278232479,-327.88256161,0.000104,2]
[352723283,1739278232489,-945.37,0.000104,2]
[352723284,1739278232498,-467.89,0.00010469,2]
[352723285,1739278232508,-725.06538865,0.00010476,2]
[352723286,1739278232518,-985.45,0.00010678,2]
[352723287,1739278232527,-150.0,0.00010678,2]
[352723288,1739278232536,-150.0,0.00010678,2]
[352723289,1739278232547,-150.0,0.00010678,2]
[352723290,1739278232556,-150.0,0.00010678,2]
[352723291,1739278232566,-150.0,0.00010678,2]
[352723292,1739278232575,-150.0,0.00010678,2]
[352723293,1739278232585,-150.0,0.00010678,2]
[352723294,1739278232595,-1000.0,0.000107,2]
[352723295,1739278232604,-1867.0,0.000108,2]
[352723296,1739278232614,-295.22,0.00010822,2]
[352723297,1739278232623,-150.62,0.00010822,2]
[352723299,1739278232633,-150.22,0.00010822,2]
[352723300,1739278232642,-150.0,0.00010822,2]
[352723301,1739278232652,-150.0,0.00010822,2]
[352723302,1739278232662,-438.84,0.00010822,2]
[352723303,1739278232672,-150.0,0.00010822,2]
[352723304,1739278232684,-150.0,0.00010822,2]
[352723305,1739278232695,-985.77,0.00010822,2]
[352723306,1739278232705,-438.84,0.00010822,2]
[352723307,1739278232715,-150.0,0.00010822,2]
[352723308,1739278232724,-257.37102633,0.00010822,2]
[352723309,1739278232735,-728.39897367,0.00010822,2]
[352723310,1739278232745,-150.0,0.00010822,2]
[352723311,1739278232755,-985.77,0.00010822,2]
[352723312,1739278232764,-150.0,0.00010822,2]
[352723313,1739278232775,-150.0,0.00010822,2]
[352723314,1739278232785,-438.84,0.00010822,2]
[352723315,1739278232795,-150.0,0.00010822,2]
[352723316,1739278232805,-438.84,0.00010822,2]
[352723317,1739278232815,-150.0,0.00010822,2]
[352723318,1739278232824,-150.0,0.00010822,2]
[352723319,1739278232834,-931.57765731,0.00010822,2]
[352723322,1739278237880,-54.19234269,0.00010822,2]
[352723323,1739278237890,-438.84,0.00010822,2]
[352723324,1739278237899,-150.0,0.00010822,2]
[352723325,1739278237908,-982.31,0.00010822,2]
[352723326,1739278237917,-438.84,0.00010822,2]
[352723327,1739278237926,-150.0,0.00010822,2]
[352723328,1739278237937,-672.54,0.00010822,2]
[352723329,1739278237947,-200.0,0.00010832,2]
[352723330,1739278237956,-150.0,0.00010841,2]
[352723331,1739278237965,-216.56997897,0.00010849,2]
[352723332,1739278237974,-2319.23762,0.0001085,2]
[352723333,1739278237983,-320.45612285,0.00010858,2]
[352723334,1739278237992,-216.56997897,0.00010859,2]
[352723335,1739278238003,-216.56997897,0.00010876,2]
[352723336,1739278238015,-216.56997897,0.00010893,2]
[352723337,1739278238024,-518.99852262,0.000109,2]
[352723338,1739278238033,-1000.0,0.000109,2]
[352723339,1739278238043,-150.0,0.00010906,2]
[352723340,1739278238054,-164.18110534,0.00010934,2]
[352723341,1739278238063,-150.0,0.00010946,2]
[352723342,1739278238073,-495.18,0.00010949,2]
[352723343,1739278238082,-501.05505135,0.00010957,2]
[352723344,1739278238094,-500.0,0.00010957,2]
[352723345,1739278238103,-500.0,0.00010957,2]
[352723346,1739278238112,-500.0,0.00010957,2]
[352723347,1739278238121,-500.0,0.00010957,2]
[352723348,1739278238131,-500.0,0.00010957,2]
[352723349,1739278238140,-500.0,0.00010957,2]
[352723350,1739278238150,-599.05144014,0.00010957,2]
[352723351,1739278238160,-500.0,0.00010957,2]
[352723353,1739278238169,-280.38808493,0.00010957,2]
[352723354,1739278238179,-500.0,0.00010957,2]
[352723355,1739278238190,-500.0,0.00010957,2]
[352723356,1739278238199,-395.91803507,0.00010957,2]
[352723357,1739278238208,-500.0,0.00010958,2]
[352723358,1739278238217,-2497.087899,0.00010958,2]
[352723359,1739278238226,-156.792702,0.00010958,2]
[352723360,1739278238236,-500.0,0.00010958,2]
[352723361,1739278238246,-500.0,0.00010958,2]
[352723362,1739278238255,-500.0,0.00010958,2]
[352723363,1739278238264,-500.0,0.00010958,2]
[352723364,1739278238274,-500.0,0.00010958,2]
[352723365,1739278238283,-500.0,0.00010958,2]
[352723366,1739278238292,-500.0,0.00010958,2]
[352723369,1739278238546,-500.0,0.00010958,2]
[352723370,1739278238556,-500.0,0.00010958,2]
[352723371,1739278238565,-500.0,0.00010958,2]
[352723372,1739278238575,-762.404245,0.00010958,2]
[352723373,1739278238584,-500.0,0.00010958,2]
[352723374,1739278238594,-500.0,0.00010958,2]
[352723375,1739278238604,-500.0,0.00010958,2]
[352723376,1739278238614,-507.115357,0.00010958,2]
[352723377,1739278238623,-500.0,0.00010958,2]
[352723378,1739278238632,-500.0,0.00010958,2]
[352723379,1739278238641,-176.696701,0.00010958,2]
[352723380,1739278238651,-500.0,0.00010958,2]
[352723381,1739278238660,-500.0,0.00010958,2]
[352723382,1739278238669,-500.0,0.00010958,2]
[352723383,1739278238679,-500.0,0.00010958,2]
[352723384,1739278238690,-500.0,0.00010958,2]
[352723385,1739278238700,-500.0,0.00010958,2]
[352723386,1739278238709,-658.52,0.00010958,2]
[352723387,1739278238719,-500.0,0.00010958,2]
[352723388,1739278238729,-500.0,0.00010958,2]
[352723389,1739278238739,-500.0,0.00010958,2]
[352723390,1739278238749,-500.0,0.00010958,2]
[352723391,1739278238759,-449.97728676,0.00010958,2]
[352723392,1739278238768,-500.0,0.00010958,2]
[352723393,1739278238778,-500.0,0.00010958,2]
[352723394,1739278238788,-500.0,0.00010958,2]
[352723395,1739278238797,-500.0,0.00010958,2]
[352723396,1739278238807,-500.0,0.00010958,2]
[352723397,1739278238818,-500.0,0.00010958,2]
[352723398,1739278238827,-500.0,0.00010958,2]
[352723399,1739278238838,-500.0,0.00010958,2]
[352723400,1739278238847,-500.0,0.00010958,2]
[352723401,1739278238857,-500.0,0.00010958,2]
[352723402,1739278238867,-500.0,0.00010958,2]
[352723403,1739278238877,-504.23670663,0.00010958,2]
[352723404,1739278238886,-500.0,0.00010958,2]
[352723405,1739278238895,-500.0,0.00010958,2]
[352723406,1739278238905,-500.0,0.00010958,2]
[352723407,1739278238915,-500.0,0.00010958,2]
[352723408,1739278238924,-500.0,0.00010958,2]
[352723409,1739278238934,-500.0,0.00010958,2]
[352723410,1739278238943,-500.0,0.00010958,2]
[352723411,1739278238953,-500.0,0.00010958,2]
[352723412,1739278238963,-596.47987233,0.00010958,2]
[352723413,1739278238973,-500.0,0.00010958,2]
[352723414,1739278238982,-500.0,0.00010958,2]
[352723415,1739278238992,-500.0,0.00010958,2]
[352723416,1739278239002,-500.0,0.00010958,2]
[352723417,1739278239011,-500.0,0.00010958,2]
[352723418,1739278239023,-151.0,0.00010958,2]
[352723419,1739278239032,-151.0,0.00010958,2]
[352723420,1739278239042,-151.0,0.00010958,2]
[352723421,1739278239052,-151.0,0.00010958,2]
[352723422,1739278239062,-151.0,0.00010958,2]
[352723423,1739278239071,-151.0,0.00010958,2]
[352723424,1739278239082,-151.0,0.00010958,2]
[352723425,1739278239093,-151.0,0.00010958,2]
[352723426,1739278239103,-151.0,0.00010958,2]
[352723427,1739278239113,-151.0,0.00010958,2]
[352723428,1739278239123,-151.0,0.00010958,2]
[352723429,1739278239133,-151.0,0.00010958,2]
[352723430,1739278239143,-151.0,0.00010958,2]
[352723431,1739278239153,-151.0,0.00010958,2]
[352723432,1739278239163,-500.0,0.00010958,2]
[352723433,1739278239173,-628.93,0.00010958,2]
[352723434,1739278239183,-500.0,0.00010958,2]
[352723435,1739278239193,-500.0,0.00010958,2]
[352723436,1739278239203,-743.32,0.00010958,2]
[352723437,1739278239212,-500.0,0.00010958,2]
[352723438,1739278239222,-500.0,0.00010958,2]
[352723439,1739278239231,-500.0,0.00010958,2]
[352723440,1739278239241,-500.0,0.00010958,2]
[352723441,1739278239250,-500.0,0.00010958,2]
[352723442,1739278239259,-245.42882643,0.00010958,2]
[352723443,1739278239269,-500.0,0.00010958,2]
[352723444,1739278239279,-500.0,0.00010958,2]
[352723445,1739278239288,-618.96844438,0.00010958,2]
[352723446,1739278239298,-500.0,0.00010958,2]
[352723447,1739278239308,-500.0,0.00010958,2]
[352723448,1739278239317,-500.0,0.00010958,2]
[352723449,1739278239327,-500.0,0.00010958,2]
[352723450,1739278239336,-500.0,0.00010958,2]
[352723451,1739278239346,-500.0,0.00010958,2]
[352723452,1739278239355,-500.0,0.00010958,2]
[352723453,1739278239364,-500.0,0.00010958,2]
[352723454,1739278239374,-1213.86,0.00010958,2]
[352723455,1739278239384,-500.0,0.00010958,2]
[352723456,1739278239393,-500.0,0.00010958,2]
[352723457,1739278239403,-500.0,0.00010958,2]
[352723458,1739278239412,-500.0,0.00010958,2]
[352723459,1739278239422,-500.0,0.00010958,2]
[352723460,1739278239432,-1010.15,0.00010958,2]
[352723461,1739278239442,-500.0,0.00010958,2]
[352723462,1739278239452,-500.0,0.00010958,2]
[352723463,1739278239461,-500.0,0.00010958,2]
[352723464,1739278239471,-837.11,0.00010958,2]
[352723465,1739278239480,-500.0,0.00010958,2]
[352723466,1739278239490,-500.0,0.00010958,2]
[352723467,1739278239499,-500.0,0.00010958,2]
[352723468,1739278239508,-860.99,0.00010958,2]
[352723469,1739278239518,-500.0,0.00010958,2]
[352723470,1739278239527,-500.0,0.00010958,2]
[352723471,1739278239538,-1031.03,0.00010958,2]
[352723472,1739278239548,-500.0,0.00010958,2]
[352723473,1739278239557,-500.0,0.00010958,2]
[352723474,1739278239567,-952.88,0.00010958,2]
[352723475,1739278239576,-151.0,0.00010958,2]
[352723476,1739278239586,-151.0,0.00010958,2]
[352723477,1739278239595,-151.0,0.00010958,2]
[352723478,1739278239604,-151.0,0.00010958,2]
[352723479,1739278239614,-151.0,0.00010958,2]
[352723480,1739278239623,-500.0,0.00010958,2]
[352723481,1739278239632,-151.0,0.00010958,2]
[352723482,1739278239642,-297.18466,0.00010958,2]
[352723483,1739278239652,-348.85513374,0.00010958,2]
[352723484,1739278239661,-500.0,0.00010958,2]
[352723485,1739278239670,-360.36332543,0.00010958,2]
[352723486,1739278239680,-500.0,0.00010958,2]
[352723487,1739278239690,-706.21,0.00010958,2]
[352723488,1739278239699,-510.63,0.00010958,2]
[352723489,1739278239709,-500.0,0.00010958,2]
[352723490,1739278239720,-500.0,0.00010958,2]
[352723491,1739278239729,-514.43,0.00010958,2]
[352723492,1739278239739,-500.0,0.00010958,2]
[352723493,1739278239748,-853.31,0.00010958,2]
[352723494,1739278239758,-500.0,0.00010958,2]
[352723495,1739278239767,-500.0,0.00010958,2]
[352723496,1739278239777,-500.0,0.00010958,2]
[352723497,1739278239787,-500.0,0.00010958,2]
[352723498,1739278239796,-736.93,0.00010958,2]
[352723499,1739278239805,-500.0,0.00010958,2]
[352723500,1739278239815,-549.89,0.00010958,2]
[352723501,1739278239825,-500.0,0.00010958,2]
[352723502,1739278239834,-521.07,0.00010958,2]
[352723503,1739278239843,-1034.97,0.00010958,2]
[352723504,1739278239853,-500.0,0.00010958,2]
[352723505,1739278239862,-628.42,0.00010958,2]
[352723506,1739278239871,-500.0,0.00010958,2]
[352723507,1739278239881,-500.0,0.00010958,2]
[352723508,1739278239890,-500.0,0.00010958,2]
[352723509,1739278239899,-822.52,0.00010958,2]
[352723510,1739278239909,-862.9,0.00010958,2]
[352723511,1739278239918,-500.0,0.00010958,2]
[352723512,1739278239928,-500.0,0.00010958,2]
[352723513,1739278239938,-608.45,0.00010958,2]
[352723514,1739278239947,-500.0,0.00010958,2]
[352723515,1739278239957,-500.0,0.00010958,2]
[352723517,1739278239967,-521.35,0.00010958,2]
[352723518,1739278239977,-500.0,0.00010958,2]
[352723519,1739278239987,-500.0,0.00010958,2]
[352723520,1739278239997,-500.0,0.00010958,2]
[352723521,1739278240007,-500.0,0.00010958,2]
[352723522,1739278240017,-500.0,0.00010958,2]
[352723523,1739278240028,-500.0,0.00010958,2]
[352723524,1739278240038,-500.0,0.00010958,2]
[352723525,1739278240047,-507.97,0.00010958,2]
[352723526,1739278240056,-500.0,0.00010958,2]
[352723527,1739278240066,-1075.77,0.00010958,2]
[352723528,1739278240076,-925.31,0.00010958,2]
[352723529,1739278240085,-500.0,0.00010958,2]
[352723530,1739278240096,-500.0,0.00010958,2]
[352723531,1739278240106,-817.64,0.00010958,2]
[352723532,1739278240115,-500.0,0.00010958,2]
[352723533,1739278240125,-500.0,0.00010958,2]
[352723534,1739278240135,-500.0,0.00010958,2]
[352723535,1739278240144,-500.0,0.00010958,2]
[352723536,1739278240153,-500.0,0.00010958,2]
[352723537,1739278240163,-868.03,0.00010958,2]
[352723538,1739278240172,-525.3976657,0.00010958,2]
[352723539,1739278240181,-1269.51,0.00010958,2]
[352723540,1739278240191,-500.0,0.00010958,2]
[352723541,1739278240200,-500.0,0.00010958,2]
[352723542,1739278240209,-500.0,0.00010958,2]
[352723543,1739278240218,-500.0,0.00010958,2]
[352723544,1739278240228,-500.0,0.00010958,2]
[352723545,1739278240238,-559.89,0.00010958,2]
[352723546,1739278240248,-500.0,0.00010958,2]
[352723547,1739278240257,-754.89,0.00010958,2]
[352723548,1739278240267,-500.0,0.00010958,2]
[352723549,1739278240276,-534.45,0.00010958,2]
[352723550,1739278240285,-673.72,0.00010958,2]
[352723551,1739278240294,-586.58,0.00010958,2]
[352723552,1739278240303,-500.0,0.00010958,2]
[352723553,1739278240313,-500.0,0.00010958,2]
[352723554,1739278240323,-500.0,0.00010958,2]
[352723555,1739278240333,-767.53,0.00010958,2]
[352723556,1739278240342,-500.0,0.00010958,2]
[352723557,1739278240352,-500.0,0.00010958,2]
[352723558,1739278240362,-500.0,0.00010958,2]
[352723559,1739278240371,-500.0,0.00010958,2]
[352723560,1739278240381,-500.0,0.00010958,2]
[352723561,1739278240391,-1040.12,0.00010958,2]
[352723562,1739278240401,-500.0,0.00010958,2]
[352723563,1739278240411,-518.33,0.00010958,2]
[352723564,1739278240421,-500.0,0.00010958,2]
[352723565,1739278240431,-518.26,0.00010958,2]
[352723567,1739278240441,-500.0,0.00010958,2]
[352723569,1739278240450,-500.0,0.00010958,2]
[352723571,1739278240459,-500.0,0.00010958,2]
[352723573,1739278240468,-500.0,0.00010958,2]
[352723574,1739278240478,-500.0,0.00010958,2]
[352723575,1739278240488,-500.0,0.00010958,2]
[352723576,1739278240498,-500.0,0.00010958,2]
[352723577,1739278240507,-500.0,0.00010958,2]
[352723578,1739278240517,-999.0,0.00010958,2]
[352723579,1739278240527,-999.0,0.00010958,2]
[352723580,1739278240536,-762.53,0.00010958,2]
[352723581,1739278240546,-999.0,0.00010958,2]
[352723582,1739278240556,-999.0,0.00010958,2]
[352723583,1739278240565,-999.0,0.00010958,2]
[352723584,1739278240575,-999.0,0.00010958,2]
[352723585,1739278240584,-999.0,0.00010958,2]
[352723586,1739278240594,-999.0,0.00010958,2]
[352723587,1739278240603,-999.0,0.00010958,2]
[352723588,1739278240613,-1009.0,0.00010958,2]
[352723590,1739278240622,-1099.58,0.00010958,2]
[352723592,1739278240632,-1210.29,0.00010958,2]
[352723594,1739278240646,-813.47,0.00010958,2]
[352723595,1739278240656,-500.0,0.00010958,2]
[352723596,1739278240665,-500.0,0.00010958,2]
[352723597,1739278240675,-1160.41,0.00010958,2]
[352723598,1739278240685,-500.0,0.00010958,2]
[352723599,1739278240694,-727.04,0.00010958,2]
[352723600,1739278240704,-500.0,0.00010958,2]
[352723601,1739278240713,-500.0,0.00010958,2]
[352723602,1739278240723,-500.0,0.00010958,2]
[352723603,1739278240733,-500.0,0.00010958,2]
[352723604,1739278240742,-500.0,0.00010958,2]
[352723605,1739278240752,-500.0,0.00010958,2]
[352723606,1739278240761,-1219.2,0.00010958,2]
[352723607,1739278240770,-838.73,0.00010958,2]
[352723608,1739278240779,-500.0,0.00010958,2]
[352723609,1739278240789,-500.0,0.00010958,2]
[352723610,1739278240799,-500.0,0.00010958,2]
[352723611,1739278240808,-1240.35,0.00010958,2]
[352723612,1739278240818,-500.0,0.00010958,2]
[352723613,1739278240827,-500.0,0.00010958,2]
[352723614,1739278240836,-657.58,0.00010958,2]
[352723615,1739278240846,-500.0,0.00010958,2]
[352723616,1739278240855,-599.09,0.00010958,2]
[352723617,1739278240864,-555.14,0.00010958,2]
[352723618,1739278240874,-500.0,0.00010958,2]
[352723619,1739278240883,-500.0,0.00010958,2]
[352723620,1739278240892,-934.76,0.00010958,2]
[352723621,1739278240902,-719.34,0.00010958,2]
[352723622,1739278240911,-500.0,0.00010958,2]
[352723623,1739278240920,-500.0,0.00010958,2]
[352723624,1739278240929,-1246.38,0.00010958,2]
[352723625,1739278240939,-536.84,0.00010958,2]
[352723626,1739278240948,-500.0,0.00010958,2]
[352723627,1739278240958,-500.0,0.00010958,2]
[352723628,1739278240967,-500.0,0.00010958,2]
[352723629,1739278240976,-500.0,0.00010958,2]
[352723630,1739278240986,-500.0,0.00010958,2]
[352723631,1739278240996,-500.0,0.00010958,2]
[352723632,1739278241006,-500.0,0.00010958,2]
[352723633,1739278241015,-569.49,0.00010958,2]
[352723634,1739278241027,-500.0,0.00010958,2]
[352723635,1739278241036,-627.5,0.00010958,2]
[352723636,1739278241046,-500.0,0.00010958,2]
[352723637,1739278241055,-709.41,0.00010958,2]
[352723638,1739278241066,-500.0,0.00010958,2]
[352723639,1739278241075,-509.17,0.00010958,2]
[352723640,1739278241085,-500.0,0.00010958,2]
[352723641,1739278241097,-1298.95,0.00010958,2]
[352723642,1739278241106,-500.0,0.00010958,2]
[352723643,1739278241115,-500.0,0.00010958,2]
[352723644,1739278241125,-500.0,0.00010958,2]
[352723645,1739278241134,-500.0,0.00010958,2]
[352723646,1739278241144,-500.0,0.00010958,2]
[352723647,1739278241153,-1103.27,0.00010958,2]
[352723648,1739278241162,-500.0,0.00010958,2]
[352723649,1739278241171,-500.0,0.00010958,2]
[352723650,1739278241181,-500.0,0.00010958,2]
[352723651,1739278241192,-500.0,0.00010958,2]
[352723652,1739278241201,-500.0,0.00010958,2]
[352723653,1739278241211,-500.0,0.00010958,2]
[352723654,1739278241220,-500.0,0.00010958,2]
[352723655,1739278241229,-500.0,0.00010958,2]
[352723656,1739278241238,-943.71,0.00010958,2]
[352723657,1739278241247,-500.0,0.00010958,2]
[352723658,1739278241257,-500.0,0.00010958,2]
[352723659,1739278241266,-500.0,0.00010958,2]
[352723660,1739278241275,-500.0,0.00010958,2]
[352723661,1739278241284,-500.0,0.00010958,2]
[352723662,1739278241293,-500.0,0.00010958,2]
[352723663,1739278241303,-500.0,0.00010958,2]
[352723664,1739278241312,-500.0,0.00010958,2]
[352723665,1739278241322,-543.05,0.00010958,2]
[352723666,1739278241331,-1105.37,0.00010958,2]
[352723667,1739278241340,-500.0,0.00010958,2]
[352723668,1739278241349,-544.69020935,0.00010958,2]
[352723669,1739278241359,-500.0,0.00010958,2]
[352723670,1739278241368,-500.0,0.00010958,2]
[352723671,1739278241378,-500.0,0.00010958,2]
[352723672,1739278241387,-250.29814288,0.00010958,2]
[352723673,1739278241396,-500.0,0.00010958,2]
[352723674,1739278241405,-500.0,0.00010958,2]
[352723675,1739278241415,-500.0,0.00010958,2]
[352723676,1739278241424,-500.0,0.00010958,2]
[352723677,1739278241433,-500.0,0.00010958,2]
[352723678,1739278241443,-500.0,0.00010958,2]
[352723679,1739278241452,-500.0,0.00010958,2]
[352723680,1739278241462,-500.0,0.00010958,2]
[352723681,1739278241471,-500.0,0.00010958,2]
[352723682,1739278241480,-927.53,0.00010958,2]
[352723683,1739278241489,-500.0,0.00010958,2]
[352723684,1739278241499,-500.0,0.00010958,2]
[352723685,1739278241508,-500.0,0.00010958,2]
[352723686,1739278241518,-500.0,0.00010958,2]
[352723687,1739278241527,-1684.74,0.00010958,2]
[352723688,1739278241536,-1197.3,0.00010958,2]
[352723689,1739278241546,-500.0,0.00010958,2]
[352723690,1739278241555,-500.0,0.00010958,2]
[352723691,1739278241564,-500.0,0.00010958,2]
[352723692,1739278241574,-500.0,0.00010958,2]
[352723693,1739278241583,-500.0,0.00010958,2]
[352723694,1739278241592,-500.0,0.00010958,2]
[352723695,1739278241602,-1197.04,0.00010958,2]
[352723696,1739278241611,-500.0,0.00010958,2]
[352723697,1739278241620,-500.0,0.00010958,2]
[352723698,1739278241629,-500.0,0.00010958,2]
[352723699,1739278241638,-500.0,0.00010958,2]
[352723700,1739278241648,-500.0,0.00010958,2]
[352723701,1739278241656,-500.0,0.00010958,2]
[352723702,1739278241666,-764.86,0.00010958,2]
[352723703,1739278241675,-648.7,0.00010958,2]
[352723704,1739278241684,-570.47,0.00010958,2]
[352723705,1739278241695,-500.0,0.00010958,2]
[352723706,1739278241704,-500.0,0.00010958,2]
[352723707,1739278241714,-500.0,0.00010958,2]
[352723708,1739278241723,-954.26,0.00010958,2]
[352723709,1739278241732,-500.0,0.00010958,2]
[352723710,1739278241743,-635.76,0.00010958,2]
[352723711,1739278241752,-500.0,0.00010958,2]
[352723712,1739278241762,-552.39130321,0.00010958,2]
[352723713,1739278241771,-500.0,0.00010958,2]
[352723714,1739278241780,-957.41,0.00010958,2]
[352723715,1739278241789,-500.0,0.00010958,2]
[352723716,1739278241799,-502.11193463,0.00010958,2]
[352723717,1739278241808,-1394.62,0.00010958,2]
[352723718,1739278241817,-500.0,0.00010958,2]
[352723719,1739278241826,-500.0,0.00010958,2]
[352723720,1739278241836,-3460.58,0.00010958,2]
[352723721,1739278241845,-500.0,0.00010958,2]
[352723722,1739278241854,-500.0,0.00010958,2]
[352723723,1739278241864,-1171.96,0.00010958,2]
[352723724,1739278241874,-500.0,0.00010958,2]
[352723725,1739278241883,-500.0,0.00010958,2]
[352723726,1739278241892,-500.0,0.00010958,2]
[352723727,1739278241901,-512.57,0.00010958,2]
[352723728,1739278241911,-500.0,0.00010958,2]
[352723729,1739278241921,-500.0,0.00010958,2]
[352723730,1739278241930,-500.0,0.00010958,2]
[352723731,1739278241941,-621.99320723,0.00010958,2]
[352723732,1739278241951,-1358.2,0.00010958,2]
[352723733,1739278241960,-482.40536194,0.00010958,2]
[352723734,1739278241969,-1708.32,0.00010958,2]
[352723735,1739278241979,-2512.7,0.00010958,2]
[352723736,1739278241988,-1292.19,0.00010958,2]
[352723737,1739278241997,-500.0,0.00010958,2]
[352723738,1739278242007,-500.0,0.00010958,2]
[352723739,1739278242017,-500.0,0.00010958,2]
[352723740,1739278242027,-500.0,0.00010958,2]
[352723741,1739278242037,-500.0,0.00010958,2]
[352723742,1739278242046,-2769.64,0.00010958,2]
[352723743,1739278242056,-500.0,0.00010958,2]
[352723744,1739278242066,-1716.39,0.00010958,2]
[352723745,1739278242075,-1173.39,0.00010958,2]
[352723746,1739278242084,-500.0,0.00010958,2]
[352723747,1739278242095,-500.0,0.00010958,2]
[352723748,1739278242104,-1929.69,0.00010958,2]
[352723749,1739278242113,-1610.03,0.00010958,2]
[352723750,1739278242122,-1922.28,0.00010958,2]
[352723751,1739278242131,-500.0,0.00010958,2]
[352723752,1739278242140,-502.54,0.00010958,2]
[352723753,1739278242150,-500.0,0.00010958,2]
[352723754,1739278242159,-500.0,0.00010958,2]
[352723755,1739278242168,-2114.25,0.00010958,2]
[352723756,1739278242178,-1171.54,0.00010958,2]
[352723757,1739278242188,-500.0,0.00010958,2]
[352723758,1739278242197,-657.39,0.00010958,2]
[352723759,1739278242207,-2287.02,0.00010958,2]
[352723760,1739278242216,-513.61,0.00010958,2]
[352723761,1739278242226,-500.0,0.00010958,2]
[352723762,1739278242235,-500.0,0.00010958,2]
[352723763,1739278242243,-954.9,0.00010958,2]
[352723764,1739278242253,-500.0,0.00010958,2]
[352723765,1739278242262,-2336.6,0.00010958,2]
[352723766,1739278242271,-500.0,0.00010958,2]
[352723767,1739278242280,-500.0,0.00010958,2]
[352723768,1739278242289,-2380.61,0.00010958,2]
[352723769,1739278242298,-856.3,0.00010958,2]
[352723770,1739278242308,-500.0,0.00010958,2]
[352723771,1739278242317,-500.0,0.00010958,2]
[352723772,1739278242326,-500.0,0.00010958,2]
[352723773,1739278242335,-500.0,0.00010958,2]
[352723774,1739278242344,-500.0,0.00010958,2]
[352723775,1739278242354,-500.0,0.00010958,2]
[352723776,1739278242363,-500.0,0.00010958,2]
[352723777,1739278242372,-2363.06,0.00010958,2]
[352723778,1739278242382,-628.35,0.00010958,2]
[352723779,1739278242390,-500.0,0.00010958,2]
[352723780,1739278242400,-500.0,0.00010958,2]
[352723781,1739278242409,-1396.86,0.00010958,2]
[352723782,1739278242418,-500.0,0.00010958,2]
[352723783,1739278242427,-500.0,0.00010958,2]
[352723784,1739278242438,-3752.03,0.00010958,2]
[352723785,1739278242447,-2985.41,0.00010958,2]
[352723786,1739278242456,-609.39,0.00010958,2]
[352723787,1739278242465,-500.0,0.00010958,2]
[352723788,1739278242475,-500.0,0.00010958,2]
[352723789,1739278242484,-2083.27,0.00010958,2]
[352723790,1739278242494,-892.03,0.00010958,2]